{"text_format":"1","workbook":"xlsx","n_sheets":3,"sheets":["Sheet1","Sheet2","Sheet3"],"not_rendered":{"charts":0,"images":0,"macros":1,"external_links":0,"defined_names":0,"comments":0,"pivot_tables":0},"unopened":[],"bounds":{"document_bytes":16777216,"sheet_cells":100000,"rows_first":2000,"rows_last":500,"rows_between":2000,"halvings":0,"cell_chars":16384,"cell_head_chars":4096},"cells_cut":0,"cells_raw":0,"read":"whole","date_system":"1900"}

{"sheet":"Sheet1","index":0,"n_rows":13,"n_cols":4,"rows_kept":13,"cut":false,"hidden":false,"merged":[[0,0,0,3]]}
["Employee Record of Saturn Group"]
[]
[null,"Employee ID","Employee Name","Joining Year"]
[null,101202135,"Mark Orwell",{"$f":"Joining_Year(B4)","v":"2021"}]
[null,102202156,"Craig Arvin",{"$f":"Joining_Year(B5)","v":"2021"}]
[null,129202077,"Shaun Mcvoy","2020"]
[null,101202181,"Steve Jones","2021"]
[null,110201971,"Natalia Austin","2019"]
[null,110202029,"Richard Hopkins","2020"]
[null,178201811,"Jennifer Marlo","2018"]
[null,195201934,"Angela Moor","2019"]
[null,113201619,"Desmond Hayes","2016"]
[null,129201850,"Benjamin Hick","2018"]

{"sheet":"Sheet2","index":1,"n_rows":13,"n_cols":5,"rows_kept":13,"cut":false,"hidden":false,"merged":[[0,0,0,3]]}
["Employee Record of Saturn Group"]
[]
[null,"Employee ID","Employee Name","Email Address","Extension"]
[null,101202135,"Mark Orwell","M.Orwell@gmail.com",{"$f":"Extension(D4)","v":"gmail"}]
[null,102202156,"Craig Arvin","Craig177@gmail.com",{"$f":"Extension(D5)","v":"gmail"}]
[null,129202077,"Shaun Mcvoy","ShaunMcvoy@outlook.com","outlook"]
[null,101202181,"Steve Jones","Steve.Jones@gmail.com","gmail"]
[null,110201971,"Natalia Austin","N.Austin@gmail.com","gmail"]
[null,110202029,"Richard Hopkins","RichardHopkins123@outlook.com","outlook"]
[null,178201811,"Jennifer Marlo","Jennifer.Marlo@outlook.com","outlook"]
[null,195201934,"Angela Moor","Angela@yahoo.com","yahoo"]
[null,113201619,"Desmond Hayes","Desmond599@yahoo.com","yahoo"]
[null,129201850,"Benjamin Hick","Benjamin.Hick@outlook.com","outlook"]

{"sheet":"Sheet3","index":2,"n_rows":13,"n_cols":5,"rows_kept":13,"cut":false,"hidden":false,"merged":[[0,0,0,3]]}
["Employee Record of Saturn Group"]
[]
[null,"Employee ID","Employee Name","Email Address","Gmail or Not"]
[null,101202135,"Mark Orwell","M.Orwell@gmail.com",{"$f":"Checking(D4,\"gmail\")","v":"Yes"}]
[null,102202156,"Craig Arvin","Craig177@gmail.com",{"$f":"Checking(D5,\"gmail\")","v":"Yes"}]
[null,129202077,"Shaun Mcvoy","ShaunMcvoy@outlook.com","No"]
[null,101202181,"Steve Jones","Steve.Jones@gmail.com","Yes"]
[null,110201971,"Natalia Austin","N.Austin@gmail.com","Yes"]
[null,110202029,"Richard Hopkins","RichardHopkins123@outlook.com","No"]
[null,178201811,"Jennifer Marlo","Jennifer.Marlo@outlook.com","No"]
[null,195201934,"Angela Moor","Angela@yahoo.com","No"]
[null,113201619,"Desmond Hayes","Desmond599@yahoo.com","No"]
[null,129201850,"Benjamin Hick","Benjamin.Hick@outlook.com","No"]